Cogmind - Beta 13 *** ADVENTURER MODE // 2024.04.18 @ 10:23:24 Player: Cheeseinator Result: Destroyed by G-50 Soldier with Heavy Laser Performance ------------- Evolutions (1) 500 Regions Visited (6) 1200 Robots Destroyed (40) 200 Value Destroyed (658) 658 Prototype IDs (0) 0 Alien Tech Used (0) 0 Bonus (0) 0 TOTAL SCORE: 2558 Bonus ------- None Cogmind --------- Core Integrity 0/400 Matter 300/300 Energy 99/100 System Corruption 0% Temperature Cool (9) Movement Core (50) Location -8/Mines Parts ------- > --- POWER (1) -------- (None) > --- PROPULSION (2) --- (None) > --- UTILITY (4) ------ (None) > --- WEAPON (2) ------- (None) > --- INVENTORY (5) ---- Light Ion Engine Light Armor Plating Improved Light Cannon Mining Claw Mining Claw Peak State ------------ > --- POWER ------------ Light Nuclear Core > --- PROPULSION ------- Aluminum Leg Carbon-fiber Leg > --- UTILITY ---------- Medium Storage Unit Visual Processing Unit Sensor Array Signal Interpreter > --- WEAPON ----------- Mining Claw Mining Claw > --- INVENTORY -------- Ion Engine Light Ion Engine Aluminum Leg Aluminum Leg Aluminum Leg High-capacity Matter Pod Signal Interpreter Light Armor Plating Light Cannon [Rating: 14] Favorites ----------- Power Light Nuclear Core Engine Ion Engine Power Core Light Nuclear Core Propulsion Aluminum Leg Leg Aluminum Leg Utility Medium Storage Unit Device Sensor Array Storage Medium Storage Unit Processor Signal Interpreter Weapon Mining Claw Energy Gun Particle Gun Ballistic Gun Assault Rifle Ballistic Cannon Light Cannon Slashing Weapon Mining Claw Build | -11 -10 -10 -9 -9 -9 -8 ------- Run | Yrd Mat Min Mat Min Exi Min Slots Evolved 2 | . . . 2 . . . Power . | . . . . . . . Propulsion . | . . . . . . . Utility 2 | . . . 2 . . . Weapon . | . . . . . . . Parts Attached 28 | 5 9 . 10 4 . . Power 5 | 1 1 . 1 2 . . Engine 3 | 1 . . . 2 . . Core 2 | . 1 . 1 . . . Reactor . | . . . . . . . Propulsion 10 | 2 2 . 4 2 . . Treads . | . . . . . . . Leg 10 | 2 2 . 4 2 . . Wheel . | . . . . . . . Hover . | . . . . . . . Flight . | . . . . . . . Utility 5 | 1 2 . 2 . . . Device 1 | . . . 1 . . . Storage 2 | 1 1 . . . . . Processor 2 | . 1 . 1 . . . Hackware . | . . . . . . . Protection . | . . . . . . . Artifact . | . . . . . . . Weapon 8 | 1 4 . 3 . . . Energy Gun 1 | . 1 . . . . . Energy Cannon . | . . . . . . . Ballistic Gun 1 | 1 . . . . . . Ballistic Cannon 2 | . 1 . 1 . . . Launcher . | . . . . . . . Special Weapon . | . . . . . . . Impact Weapon . | . . . . . . . Slashing Weapon 4 | . 2 . 2 . . . Piercing Weapon . | . . . . . . . Special Melee Weapon . | . . . . . . . Unidentified Prototypes . | . . . . . . . Parts Lost 1 | . . . . 1 . . Power 1 | . . . . 1 . . Propulsion . | . . . . . . . Utility . | . . . . . . . Weapon . | . . . . . . . Highest Loss Streak 1 | . . . . 1 . . To Critical Strikes . | . . . . . . . Average Slot Usage (%) 96 | . 95 100 100 100 77 . Engine 3 | . 1 . . 7 8 . Core 9 | . 12 14 11 3 . . Leg 24 | . 27 28 22 22 17 . Device 4 | . . . 11 11 8 . Storage 12 | . 14 14 11 11 8 . Processor 16 | . 12 14 22 22 17 . Energy Gun 4 | . 10 . . . . . Ballistic Gun 1 | . 2 . . . . . Ballistic Cannon 4 | . 9 . . . . . Slashing Weapon 14 | . 3 28 22 22 17 . Naked Turns 40 | . . . . . 38 2 Heaviest Build 21 | 12 21 19 21 20 20 . Greatest Support 25 | 20 20 20 25 20 20 3 Greatest Overweight (x) 1 | . 1 . 1 . . . Average Overweight (x) . | . . . . . . . Largest Inventory Capacity 10 | 8 10 10 10 10 10 5 Average Capacity 9 | 7 9 10 10 10 8 5 Most Carried 10 | 1 10 10 10 10 9 5 Average Carried 7 | . 7 10 8 9 8 5 Final Capacity 10 | 8 10 10 10 10 5 5 Final Carried 10 | 1 10 10 10 9 5 5 Class Distribution -------------------- 43% | Scavenger-Assassin 31% | Scavenger-Mutant 25% | Mutant Dominant Class ---------------- Scavenger-Mutant | -10/Materials Mutant | -10/Mines Scavenger-Assassin | -9/Materials Scavenger-Assassin | -9/Mines Scavenger-Assassin | -9/Exiles Scavenger-Assassin | -8/Mines Resources | -11 -10 -10 -9 -9 -9 -8 ----------- Run | Yrd Mat Min Mat Min Exi Min Matter Collected 838 | 220 452 14 112 40 . . Remotely . | . . . . . . . Salvage Created 974 | . 439 . 264 257 14 . Parts 73 | . 36 . 25 12 . . Haulers Intercepted . | . . . . . . . Recyclers Shooed 2 | . 2 . . . . . Parts Field Recycled . | . . . . . . . Retrieved Matter . | . . . . . . . Parts Self-Destructed . | . . . . . . . Prevented . | . . . . . . . Kills | -11 -10 -10 -9 -9 -9 -8 ------- Run | Yrd Mat Min Mat Min Exi Min Combat Hostiles Destroyed 35 | . 10 . 13 11 1 . Melee 27 | . 2 . 13 11 1 . Guns 6 | . 6 . . . . . Cannons 2 | . 2 . . . . . Classes Destroyed 6 | . 5 . . 1 . . Worker 5 | . 4 . . 1 . . Recycler 1 | . 1 . . . . . Watcher 3 | . 3 . . . . . Swarmer 21 | . 5 . 11 5 . . Grunt 10 | . 5 . 2 3 . . Assembled 4 | . . . . 3 1 . Best Kill Streak 4 | . 3 . 4 3 1 . Combat Bots Only 4 | . 3 . 4 3 1 . Max Kills in Single Turn 1 | . 1 . 1 1 1 . Gunslinging . | . . . . . . . Exploded . | . . . . . . . Melee 1 | . 1 . 1 1 1 . Uniques/NPCs Destroyed . | . . . . . . . Combat | -11 -10 -10 -9 -9 -9 -8 -------- Run | Yrd Mat Min Mat Min Exi Min Hostile Shots Fired 231 | . 65 . 59 66 39 2 Missed 85 | . 22 . 24 22 16 1 Damage Taken 1264 | . 299 33 251 359 308 14 Core 476 | . 75 . 58 61 268 14 Absorbed by Shields . | . . . . . . . Ignored by Resistances 388 | . 96 9 79 110 90 4 Regen/Repaired (Parts) 42 | . 42 . . . . . Core Remaining (%) 85 | 100 . 70 . . . . Volleys Fired 49 | . 49 . . . . . Largest 2 | . 2 . . . . . Hottest 100 | . 100 . . . . . Shots Fired 68 | . 68 . . . . . Gun 52 | . 52 . . . . . Cannon 16 | . 16 . . . . . Launcher . | . . . . . . . Special . | . . . . . . . Kinetic 49 | . 49 . . . . . Thermal 19 | . 19 . . . . . Explosive . | . . . . . . . Electromagnetic . | . . . . . . . Robot Hit Streak 9 | . 9 . . . . . Robot Miss Streak 3 | . 3 . . . . . Penetration Max . | . . . . . . . Secondary Targets . | . . . . . . . Shots Hit Robots 106 | . 53 1 24 25 3 . Core Hits 51 | . 23 . 14 13 1 . Critical Kills 1 | . 1 . . . . . Critical Parts Destroyed . | . . . . . . . Critical Strikes 3 | . 3 . . . . . Burn 2 | . 2 . . . . . Destroy 1 | . 1 . . . . . Melee Attacks 94 | . 7 7 30 46 4 . Impact . | . . . . . . . Slashing 94 | . 7 7 30 46 4 . Piercing . | . . . . . . . Sneak Attacks 8 | . 3 1 . 2 2 . Combat Hostiles . | . . . . . . . Follow-up Attacks 4 | . . . 2 2 . . Damage Inflicted 2257 | . 955 44 566 575 117 . Guns 514 | . 514 . . . . . Cannons 194 | . 194 . . . . . Explosions . | . . . . . . . Melee 1543 | . 241 44 566 575 117 . Ramming 6 | . 6 . . . . . Kinetic 462 | . 462 . . . . . Thermal 246 | . 246 . . . . . Explosive . | . . . . . . . Electromagnetic . | . . . . . . . Impact . | . . . . . . . Slashing 1543 | . 241 44 566 575 117 . Piercing . | . . . . . . . Highest Corruption . | . . . . . . . Average Corruption . | . . . . . . . Corruption Purged . | . . . . . . . Corruption Blocked . | . . . . . . . Overload Shots . | . . . . . . . Overflow Damage 104 | . 54 14 8 24 4 . Projectiles 3 | . 3 . . . . . Explosions . | . . . . . . . Melee 101 | . 51 14 8 24 4 . Knockbacks 1 | . 1 . . . . . Impact . | . . . . . . . Kinetic 1 | . 1 . . . . . Secondary . | . . . . . . . Self-Inflicted Damage . | . . . . . . . Shots . | . . . . . . . Rammed . | . . . . . . . Targets Rammed 2 | . 2 . . . . . Kicked 2 | . 2 . . . . . Crushed . | . . . . . . . Highest Temperature 231 | . 231 . . 38 . . Average Temperature 86 | . 89 . . 16 . . Received Heat Transfer 403 | . 87 . 63 184 60 9 Siege Activations . | . . . . . . . Robots Corrupted . | . . . . . . . Combat Hostiles . | . . . . . . . Parts Fried . | . . . . . . . Impact Corruptions . | . . . . . . . Robots Melted . | . . . . . . . Combat Hostiles . | . . . . . . . Parts Melted 2 | . 2 . . . . . Heat Transferred 740 | . 740 . . . . . Parts Sabotaged . | . . . . . . . Parts Stolen . | . . . . . . . Parts Stripped . | . . . . . . . Power Chain Reactions . | . . . . . . . Alert | -11 -10 -10 -9 -9 -9 -8 ------- Run | Yrd Mat Min Mat Min Exi Min Peak Influence 335 | . 173 3 330 335 . . Initial 108 | . . . . 108 . . Average 105 | . 66 . 200 173 . . Maximum Alert Level 1 | . . . 1 1 . . Low Security (%) 84 | 100 100 100 42 72 . 100 Level 1 15 | . . . 57 27 . . Level 2 . | . . . . . . . Level 3 . | . . . . . . . Level 4 . | . . . . . . . Level 5 . | . . . . . . . High Security . | . . . . . . . Max Security . | . . . . . . . Squads Dispatched 1 | . 1 . . . . . Investigation 1 | . 1 . . . . . Extermination . | . . . . . . . Reinforcement . | . . . . . . . Assault . | . . . . . . . Garrison . | . . . . . . . Intercept . | . . . . . . . Searches Triggered . | . . . . . . . Construction Impeded . | . . . . . . . Haulers Reinforced . | . . . . . . . Active Scanning Responses . | . . . . . . . Cargo Convoy Interrupts . | . . . . . . . Stealth | -11 -10 -10 -9 -9 -9 -8 --------- Run | Yrd Mat Min Mat Min Exi Min Distress Signals 4 | . 2 . 2 . . . Communications Jammed . | . . . . . . . Distress Signals . | . . . . . . . Times Spotted 59 | . 18 . 16 14 8 3 Peak Tracking Total 10 | . 5 . 5 4 10 4 Tactical Retreats 4 | . 2 . 1 1 . . Traps | -11 -10 -10 -9 -9 -9 -8 ------- Run | Yrd Mat Min Mat Min Exi Min Traps Triggered 1 | . . 1 . . . . Indirectly . | . . . . . . . Trap Hack Attempts . | . . . . . . . Triggered . | . . . . . . . Disarmed . | . . . . . . . Reprogrammed . | . . . . . . . Reused . | . . . . . . . Traps Extracted . | . . . . . . . Installed . | . . . . . . . Triggered . | . . . . . . . Machines | -11 -10 -10 -9 -9 -9 -8 ---------- Run | Yrd Mat Min Mat Min Exi Min Machines Disabled 2 | . 1 . . . 1 . Max in Single Turn 1 | . 1 . . . 1 . Machines Repaired . | . . . . . . . Machines Dismantled . | . . . . . . . Machines Sabotaged . | . . . . . . . Overloaded Fab Kills . | . . . . . . . Hacking | -11 -10 -10 -9 -9 -9 -8 --------- Run | Yrd Mat Min Mat Min Exi Min Machines Accessed 4 | . 2 1 1 . . . Terminals 1 | . 1 . . . . . Fabricators . | . . . . . . . Repair Stations 1 | . 1 . . . . . Recycling Units 1 | . . . 1 . . . Scanalyzers . | . . . . . . . Garrison Access . | . . . . . . . Total Hacks 7 | . 5 1 1 . . . Successful 5 | . 3 1 1 . . . Failed 2 | . 2 . . . . . Catastrophic . | . . . . . . . Database Lockouts . | . . . . . . . Manual 6 | . 3 1 2 . . . Terminals 2 | . 2 . . . . . Fabricators . | . . . . . . . Repair Stations 3 | . 3 . . . . . Recycling Units 1 | . . . 1 . . . Scanalyzers . | . . . . . . . Garrison Access . | . . . . . . . Terminal Hacks 1 | . . 1 . . . . Open Door 1 | . . 1 . . . . Fabricator Hacks . | . . . . . . . Repair Station Hacks 2 | . 2 . . . . . Scan Component 1 | . 1 . . . . . Repair 1 | . 1 . . . . . Recycling Unit Hacks . | . . . . . . . Scanalyzer . | . . . . . . . Garrison Access Hacks . | . . . . . . . Unauthorized Hacks 2 | . 1 . 1 . . . Terminals 1 | . 1 . . . . . Botnet 1 | . 1 . . . . . Fabricators . | . . . . . . . Repair Stations . | . . . . . . . Recycling Units 1 | . . . 1 . . . Monitor 1 | . . . 1 . . . Scanalyzers . | . . . . . . . Garrison Access . | . . . . . . . Data Cores Recovered . | . . . . . . . Used . | . . . . . . . Hacking Detections 2 | . 1 . 1 . . . Full Trace Events 1 | . 1 . . . . . Feedback Events . | . . . . . . . Feedback Blocked . | . . . . . . . Robot Schematics Acquired . | . . . . . . . Robots Built . | . . . . . . . Authchips . | . . . . . . . Time . | . . . . . . . Total Robot Build Rating . | . . . . . . . Part Schematics Acquired . | . . . . . . . Parts Built . | . . . . . . . Authchips . | . . . . . . . Time . | . . . . . . . Total Part Build Rating . | . . . . . . . Parts Repaired 1 | . 1 . . . . . Time 26 | . 26 . . . . . Parts Recycled . | . . . . . . . Recycled Matter . | . . . . . . . Retrieved Matter . | . . . . . . . Retrieved Components . | . . . . . . . Parts Scanalyzed . | . . . . . . . Part Schematics Acquired . | . . . . . . . Parts Damaged . | . . . . . . . Bothacking | -11 -10 -10 -9 -9 -9 -8 ------------ Run | Yrd Mat Min Mat Min Exi Min Used RIF Installer . | . . . . . . . Robots Hacked . | . . . . . . . Non-combat . | . . . . . . . Combat . | . . . . . . . Robot Hacks Applied . | . . . . . . . Relay Couplers Released . | . . . . . . . Fabnet Peak Effective % . | . . . . . . . Robots Rewired . | . . . . . . . Allies Hacked . | . . . . . . . Hacks Repelled . | . . . . . . . Allies | -11 -10 -10 -9 -9 -9 -8 -------- Run | Yrd Mat Min Mat Min Exi Min Total Allies 1 | . . 1 . . . . Largest Group 1 | . . 1 1 . . . Highest-Rated Group 31 | . . 31 31 . . . Highest-Rated Ally 31 | . . 31 31 . . . Total Orders . | . . . . . . . Ally Attacks . | . . . . . . . Total Damage . | . . . . . . . Kills . | . . . . . . . Allies Corrupted . | . . . . . . . Allies Melted . | . . . . . . . Intel | -11 -10 -10 -9 -9 -9 -8 ------- Run | Yrd Mat Min Mat Min Exi Min Robot Analysis Total . | . . . . . . . Derelict Logs Recovered 2 | . . . . 2 . . Drone Launches . | . . . . . . . Drone Recoveries . | . . . . . . . Exploration | -11 -10 -10 -9 -9 -9 -8 ------------- Run | Yrd Mat Min Mat Min Exi Min Turns Passed 2871 | 111 1220 260 390 715 173 2 Spaces Moved 1769 | 96 600 182 234 476 178 3 Core 110 | 30 . . . . 77 3 Treads . | . . . . . . . Legs 1659 | 66 600 182 234 476 101 . Wheels . | . . . . . . . Hover . | . . . . . . . Flight . | . . . . . . . Fastest Speed 50 | 50 120 120 120 120 50 50 Average Speed 130 | 98 162 120 121 120 89 50 Slowest Speed 190 | 120 190 120 190 120 120 50 Overloaded Moves . | . . . . . . . Propulsion Burnouts . | . . . . . . . Robots Hopped . | . . . . . . . Cave-ins Triggered . | . . . . . . . Exploration Rate (%) 37 | 6 72 45 26 76 37 3 Regions Visited 6 Branch Regions 4 Pre-discovered Areas . | . . . . . . . Known Exits Taken 4 | . 1 1 1 1 . . Unknown Exits Taken 2 | 1 . . . . 1 . Scrap Searched 3 | . . 1 . 2 . . Spaces Dug 6 | . . 3 . 3 . . Terrain Destroyed 6 | . . 3 . 3 . . Melee 6 | . . 3 . 3 . . Projectile . | . . . . . . . AOE . | . . . . . . . Terrain Rammed . | . . . . . . . Walls Destroyed . | . . . . . . . Machines Disabled . | . . . . . . . Actions | -11 -10 -10 -9 -9 -9 -8 --------- Run | Yrd Mat Min Mat Min Exi Min Total 2088 | 110 758 211 287 537 182 3 Wait 137 | 9 79 24 10 14 1 . Move 1763 | 95 599 181 233 475 177 3 Hop . | . . . . . . . Pick Up 11 | 1 7 . 3 . . . Fast Attach 15 | 5 7 . 2 1 . . Attach 3 | . . . 2 1 . . Detach 3 | . 2 . . 1 . . Swap 10 | . 2 . 6 2 . . Drop 13 | . 4 . 6 3 . . Fire 49 | . 49 . . . . . Melee 82 | . 7 6 25 40 4 . Ram . | . . . . . . . Kick 2 | . 2 . . . . . Crush . | . . . . . . . Escape Stasis . | . . . . . . . Rewire . | . . . . . . . Trap . | . . . . . . . Miscellaneous . | . . . . . . . Route ------- -11/Scrapyard -10/Materials (discovered 2 exits: *Mat / *Min) -10/Mines -9/Materials -9/Mines -9/Exiles -8/Mines History --------- Turn | Location | Event 15 | -11/Scrapyard | Discovered new exit (range 14) 112 | -11/Scrapyard | Entered Materials 339 | -10/Materials | Discovered new exit (range 6) 547 | -10/Materials | Build established: Scavenger-Mutant 787 | -10/Materials | Repaired Aluminum Leg 804 | -10/Materials | Discovered new exit (range 16) 1317 | -10/Materials | Identified exit to Mines 1332 | -10/Materials | Entered Mines 1335 | -10/Mines | Received a Mining Laser from a helpful Derelict 1378 | -10/Mines | Met a Derelict who couldn't figure out how to use a Trap Extractor 1457 | -10/Mines | Build established: Mutant 1471 | -10/Mines | Discovered new exit (range 10) 1482 | -10/Mines | Identified exit to Materials 1592 | -10/Mines | Entered Materials 1592 | -9/Materials | Accompanied by 1 ally 1592 | -9/Materials | Evolved 2 slots: Utility x2 1825 | -9/Materials | Discovered new exit (range 18) 1943 | -9/Materials | Build established: Scavenger-Assassin 1946 | -9/Materials | Identified exit to Mines 1982 | -9/Materials | Entered Mines 2285 | -9/Mines | Learned Materials machine intel 2376 | -9/Mines | Identified exit to Exiles 2448 | -9/Mines | Excavation squad dispatched 2448 | -9/Mines | A large section of the Mines collapsed 2691 | -9/Mines | Deemed a non-threat by the Exiles lab entrance 2697 | -9/Mines | Entered Exiles 2717 | -9/Exiles | Discovered new exit (range 17) 2749 | -9/Exiles | Met 8R-AWN 2767 | -9/Exiles | Met EX-HEX 2803 | -9/Exiles | Met EX-BIN 2816 | -9/Exiles | Attacked by the Exiles 2832 | -9/Exiles | Released all parts (9) 2839 | -9/Exiles | Core integrity fell below 50% 2850 | -9/Exiles | Core integrity fell below 20% 2870 | -9/Exiles | Entered Mines 2872 | -8/Mines | Destroyed by G-50 Soldier with Heavy Laser Last Messages --------------- 02840_ Penetrated by HV Slug. 02842_ HV Slug penetrates Machine. 02842_ Penetrated by HV Slug. 02842_ HV Slug penetrates Machine. 02844_ Machine disabled. 02844_ HV Slug penetrates Machine. 02844_ Machine disabled. 02844_ HV Slug penetrates Machine. 02846_ Penetrated by HV Slug. 02846_ HV Slug penetrates Machine. 02846_ Machine disabled. 02846_ Penetrated by HV Slug. 02846_ HV Slug penetrates Wall. 02849_ Penetrated by HV Slug. 02849_ HV Slug penetrates Wall. 02859_ Rigged Rnf. Deuterium Engine explodes. 02859_ Machine disabled. A strange signal echoes through the mines. LOCATION=UNKNOWN GOAL=ESCAPE Map ----- +----------------------------------------------------+ | ???????????????????????????????? | | ???????????????????????????????? | | ???????????????????????????????? | | ???????????????????????????????? | | ???????????????????????????????? | | ???????????????????????????????? | | ???????????????????????????????? | | ???????????????????????????????? | | ???????????????????????????????? | | ???????????????????????????????? | | ???????????????????????????????? | | ???????????????????????????????? | | ???????????????????????????????? | | ???????????????????????????????? | | ???????????????????????????????? | | ???????????????????????????????? | | ???????????????????????????????? | | ???????????????????????????????? | | ???????????????????????????????? | | ???????????????????????????????? | | ?????####??????????????????????? | | ????## ####???????????????????? | | ????# ##??????????????????? | | ????# #### #????????????? | | ????## gg #????????????? | | ?????##@ g ########????????????? | | ??????# #???????????????????? | | ?????? #???????????????????? | | ?????? ##???????????????????? | | ????? ##????????????????????? | | ?????# ##?????????????????????? | | ?????####??????????????????????? | | ???????????????????????????????? | | ???????????????????????????????? | | ???????????????????????????????? | | ???????????????????????????????? | | ???????????????????????????????? | | ???????????????????????????????? | | ???????????????????????????????? | | ???????????????????????????????? | | ???????????????????????????????? | | ???????????????????????????????? | | ???????????????????????????????? | | ???????????????????????????????? | | ???????????????????????????????? | | ???????????????????????????????? | | ???????????????????????????????? | | ???????????????????????????????? | | ???????????????????????????????? | | ???????????????????????????????? | +----------------------------------------------------+ Best States ------------- Heat Dissipation 28 Energy Generation 14 Energy Capacity 250 Matter Stores 300 Matter Capacity 300 Sight Range 18 Robot Scan Range 14 Terrain Scan Density 10 Resistance: KI 20 Resistance: TH 20 Resistance: EX 20 Resistance: EM 20 Resistance: I 20 Resistance: S 20 Resistance: P 20 Evasion (%) 55 Offensive Hacking 10 Item Schematics ----------------- None Robot Schematics ------------------ None Fabricated ------------ Nothing Alien Tech Used ----------------- None Achievements -------------- None Challenges ------------ None Game ------ Seed RefineryHeartRecalibrator Manual? 0 Play Time 00:17:59 Cumulative 15.1 hours Start 2024.04.18 @ 10:05:12 End 2024.04.18 @ 10:23:24 Sessions 1 Manual Loads 0 Difficulty Adventurer Special Mode None Game No. 19 Rogue 3 Adventurer 15 Explorer 1 Win Type - Total 0 Types 0/0/0/0/0/0/0/0/0 Lore% 12 Gallery% 25 Achievement% 21 Wizard Run 0 Options --------- Layout 0 ASCII 0 Keyboard 1 Movement Numpad Keybinds 0 Fullscreen 2 Font 18/Terminus Map View 76x50 Zoom Use 3% Tactical HUD 1 Map Filters NONE Filters NONE Steam 1 RUN: cba2af3d-f0bd-4c58-83cb-77cfc56ae5cf